lending/lending_fUSD_20240410
["ID","MTS","AMOUNT","RATE_DAILY","PERIOD"]
[322038647,1712712638811,-3950.35895825,0.00020998,2]
[322038649,1712712638821,-440.34051839,0.00020998,2]
[322038652,1712712638831,-375.85470948,0.00020998,2]
[322038653,1712712638841,-303.9039871,0.00020999,2]
[322038655,1712712638852,-226.49080462,0.00020999,2]
[322038658,1712712638861,-9644.40616402,0.00021,2]
[322038660,1712712638870,-571.0,0.00021,2]
[322038661,1712712638880,-233.04715138,0.00021,2]
[322038663,1712712638890,-158449.46413591,0.00021,2]
[322038666,1712712638901,-329.7394984,0.00021,2]
[322038669,1712712638920,-901.53847742,0.00021,2]
[322038672,1712712638937,-10000.0,0.00021,2]
[322038782,1712712640390,-794.514,0.00021,2]
[322038787,1712712640436,-256.58984066,0.00021,2]
[322038792,1712712640472,-257.63960634,0.00021,2]
[322038795,1712712640485,-263.23799985,0.00021,2]
[322038980,1712712642296,-155.10769837,0.00020999,2]
[322038982,1712712642305,-936.50118018,0.00020999,2]
[322038984,1712712642315,-194512.21047659,0.00021,2]
[322038986,1712712642324,-735318.41763783,0.00021,2]
[322038988,1712712642335,-698.67381057,0.00021,2]
[322039090,1712712643309,-155.30621537,0.00020999,2]
[322039093,1712712643319,-243.12318968,0.00020999,2]
[322039096,1712712643328,-2575.43160079,0.00021,2]
[322039099,1712712643341,-2977.3225905,0.00021,2]
[322039108,1712712643418,-6599.99999996,0.00021,2]
[322039122,1712712643821,-406.0899927,0.00020999,2]
[322039124,1712712643830,-1299.47753411,0.00021,2]
[322039126,1712712643842,-952546.26890776,0.00021,2]
[322039234,1712712646284,-155.34942551,0.00020999,2]
[322039236,1712712646294,-251.77914038,0.00020999,2]
[322039241,1712712646323,-748.22085962,0.00020999,2]
[322039243,1712712646332,-155.30534479,0.00020999,2]
[322039245,1712712646342,-5971.47379559,0.00021,2]
[322039252,1712712646398,-2102.74269331,0.00021,2]
[322039257,1712712646444,-303.77000452,0.00020997,2]
[322039263,1712712646482,-3487.08904812,0.00020997,2]
[322039278,1712712646615,-284.66701478,0.00020997,2]
[322039280,1712712646625,-207.24715162,0.00020999,2]
[322039282,1712712646634,-17577.2832922,0.00021,2]
[322039285,1712712646645,-631.93233735,0.00021,2]
[322039350,1712712650021,526.0223,0.00031789,30]
[322039351,1712712665691,991.58482803,0.00015749,2]
[322039353,1712712718946,579.74,0.00024329,15]
[322039362,1712713185572,543.5,0.00024329,15]
[322039366,1712713326051,24314.49801011,0.00017949,2]
[322039367,1712713331833,178.21,0.00015463,2]
[322039369,1712713338290,3028.45584228,0.00017947,2]
[322039371,1712713381961,1034.48414742,0.00017947,2]
[322039372,1712713384530,360.59772563,0.00017947,2]
[322039373,1712713385040,155.0,0.00017947,2]
[322039375,1712713385567,155.0,0.00017947,2]
[322039376,1712713385796,296.2979543,0.00017947,2]
[322039377,1712713385999,2536.49115886,0.0001346,2]
[322039378,1712713386937,19639.62933968,0.00017947,2]
[322039379,1712713387123,620.2405914,0.00017947,2]
[322039380,1712713387970,1504.26326125,0.00017947,2]
[322039382,1712713388503,323.32008066,0.00017947,2]
[322039384,1712713388628,20134.2678214,0.00017947,2]
[322039385,1712713388986,1371.88659941,0.00017947,2]
[322039386,1712713389450,365.12124712,0.00017947,2]
[322039387,1712713389667,215.788929,0.00017952,2]
[322039388,1712713393214,179.32852463,0.00017947,2]
[322039389,1712713396431,170.63,0.00015568,2]
[322039391,1712713399968,1100.04595587,0.00017947,2]
[322039392,1712713400531,360.59772563,0.00017947,2]
[322039393,1712713401032,306.35049488,0.00017947,2]
[322039394,1712713401557,403.53878738,0.00017942,2]
[322039395,1712713401795,296.2979543,0.00017947,2]
[322039396,1712713402004,2536.49115886,0.0001346,2]
[322039397,1712713402508,323.32008066,0.00017947,2]
[322039398,1712713402892,16281.39357301,0.00017947,2]
[322039399,1712713402958,620.2405914,0.00017947,2]
[322039400,1712713405977,835.70181181,0.00017947,2]
[322039402,1712713406628,20134.2678214,0.00017947,2]
[322039403,1712713407001,1371.88659941,0.00017947,2]
[322039404,1712713407236,179.32852463,0.00017947,2]
[322039405,1712713407463,369.22625785,0.00017947,2]
[322039406,1712713409572,155.0,0.00017947,2]
[322039408,1712713416539,403.69851146,0.00017947,2]
[322039410,1712713421801,296.2979543,0.00017947,2]
[322039411,1712713422506,240.42044994,0.00017947,2]
[322039413,1712713422623,14112.60544293,0.00017947,2]
[322039414,1712713424003,2536.49115886,0.0001346,2]
[322039415,1712713424995,323.14534812,0.00017947,2]
[322039416,1712713425221,179.32852463,0.00017947,2]
[322039417,1712713426995,1371.88659941,0.00017947,2]
[322039418,1712713427975,835.70181181,0.00017947,2]
[322039420,1712713431638,162.67877667,0.00017947,2]
[322039421,1712713439242,179.32852463,0.00017947,2]
[322039422,1712713442020,2536.49115886,0.0001346,2]
[322039424,1712713443014,494.35380567,0.00017947,2]
[322039425,1712713444965,323.14534812,0.00017947,2]
[322039426,1712713445985,435.40064395,0.00017947,2]
[322039428,1712713447799,296.2979543,0.00017947,2]
[322039429,1712713457313,179.32852463,0.00017947,2]
[322039430,1712713458965,323.14534812,0.00017947,2]
[322039431,1712713459148,172.26,0.00016712,2]
[322039432,1712713460004,2536.49115886,0.0001346,2]
[322039433,1712713461985,435.40064395,0.00017947,2]
[322039434,1712713463811,273.03223198,0.00017947,2]
[322039437,1712713476013,1075.09759406,0.0001346,2]
[322039438,1712713477650,323.14534812,0.00017947,2]
[322039439,1712713478596,435.40064395,0.00017947,2]
[322039440,1712713479238,317.02437517,0.00017947,2]
[322039441,1712713480005,1443.0,0.00017942,2]
[322039444,1712713496977,323.14534812,0.00017947,2]
[322039445,1712713502987,150.0,0.00018,2]
[322039446,1712713504005,435.40064395,0.00017947,2]
[322039447,1712713515036,323.14534812,0.00017947,2]
[322039448,1712713520034,435.40064395,0.00017947,2]
[322039449,1712713527158,151.0,0.00015749,2]
[322039450,1712713527972,152.0,0.00015749,2]
[322039451,1712713530977,323.14534812,0.00017947,2]
[322039452,1712713536011,435.40064395,0.00017947,2]
[322039453,1712713551129,323.14534812,0.00017947,2]
[322039454,1712713554014,435.40064395,0.00017947,2]
[322039455,1712713566987,323.14534812,0.00017947,2]
[322039456,1712713568010,435.40064395,0.00017947,2]
[322039458,1712713584226,435.40064395,0.00017947,2]
[322039459,1712713584980,243.4701679,0.00017947,2]
[322039460,1712713604013,435.40064395,0.00017947,2]
[322039461,1712713622024,392.01253591,0.00017947,2]
[322039463,1712713635241,1143.42,0.00016987,2]
[322039464,1712713637494,219.45470976,0.0001792,2]
[322039465,1712713642122,-251.08783605,0.00018018,2]
[322039466,1712713642142,-1969.91143067,0.00018018,2]
[322039467,1712713642161,-1241.87688418,0.00018019,2]
[322039468,1712713642181,-366.38691564,0.00018019,2]
[322039469,1712713642201,-504.36192946,0.00018019,2]
[322039470,1712713642219,-155.0,0.0001802,2]
[322039471,1712713642239,-644.65092322,0.0001802,2]
[322039472,1712713642258,-536.91468218,0.0001802,2]
[322039473,1712713642278,-2175.08703921,0.0001802,2]
[322039474,1712713642297,-155.0,0.00018021,2]
[322039475,1712713642316,-155.0,0.00018021,2]
[322039476,1712713642335,-1342.0,0.00018021,2]
[322039477,1712713642357,-550.95464808,0.00018022,2]
[322039478,1712713642376,-4467.74366992,0.00018023,2]
[322039479,1712713642397,-499.99985555,0.00018023,2]
[322039480,1712713642416,-1000.0,0.00018024,2]
[322039481,1712713642439,-600.56853825,0.00018029,2]
[322039482,1712713642459,-150.0,0.00018033,2]
[322039483,1712713642479,-150.0,0.00018033,2]
[322039484,1712713642498,-3002.47900617,0.00018142,2]
[322039485,1712713678185,30000.0,0.00017,2]
[322039486,1712713686771,20000.0,0.00018,2]
[322039487,1712713687633,509.53,0.00024329,15]
[322039488,1712713746119,-155.0,0.00018017,2]
[322039489,1712713746139,-1000.0,0.00018141,2]
[322039490,1712713746158,-5848.3378,0.00018142,2]
[322039492,1712713759100,-7738.41799383,0.00018142,2]
[322039493,1712713759121,-4946.09702088,0.00018485,2]
[322039494,1712713786355,700.0,0.00018,2]
[322039495,1712713802656,150.0,0.00018,2]
[322039496,1712713802836,150.0,0.00018,2]
[322039497,1712713803034,150.0,0.00018,2]
[322039498,1712713803243,240.45995887,0.00018,2]
[322039499,1712713831490,-236.329317,0.00018082,2]
[322039500,1712713831499,-536.91468218,0.00018483,2]
[322039501,1712713831509,-39.07137086,0.00018484,2]
[322039502,1712713831521,-553.64955842,0.00018484,2]
[322039503,1712713831608,-1232.936,0.00018484,2]
[322039504,1712713831677,-1081.48760371,0.00018484,2]
[322039505,1712713831687,-118.03297912,0.00018485,2]
[322039506,1712713831696,-1641.62,0.00018897,2]
[322039507,1712713831706,-550.81,0.00018897,2]
[322039508,1712713831715,-155.80643755,0.00018898,2]
[322039509,1712713831725,-265.26568136,0.00018898,2]
[322039510,1712713831734,-236.329317,0.00018904,2]
[322039511,1712713831743,-8168.49449416,0.00018905,2]
[322039534,1712713837471,-155.0,0.00018482,2]
[322039535,1712713837481,-2175.37290017,0.00018483,2]
[322039560,1712713838240,-2292.37076975,0.00018483,2]
[322039561,1712713838250,-155.0,0.00018483,2]
[322039562,1712713838260,-1640.57550584,0.00018905,2]
[322039563,1712713838269,-168.61,0.00018905,2]
[322039564,1712713838279,-2098.6,0.00018905,2]
[322039565,1712713838288,-311.03,0.00018917,2]
[322039566,1712713838299,-1134.83,0.0001897,2]
[322039567,1712713838308,-4887.73,0.0001897,2]
[322039568,1712713838318,-1120.35,0.00018983,2]
[322039569,1712713838328,-40.50372441,0.00019013,2]
[322039570,1712713838342,-459.49627559,0.00019013,2]
[322039571,1712713838351,-539.39,0.00019013,2]
[322039573,1712713838362,-326.32202649,0.00019021,2]
[322039574,1712713838373,-1395.60818834,0.00019021,2]
[322039577,1712713838385,-742.78126333,0.00019021,2]
[322039579,1712713838399,-1884.90852184,0.00019021,2]
[322039581,1712713838410,-150.0,0.00019021,2]
[322039583,1712713838420,-250.0,0.00019036,2]
[322039585,1712713838429,-200.0,0.00019038,2]
[322039587,1712713838439,-500.0,0.0001904,2]
[322039589,1712713838448,-10301.15,0.00019048,2]
[322039591,1712713838457,-1389.64,0.00019056,2]
[322039593,1712713838467,-499.99,0.00019056,2]
[322039595,1712713838477,-161.14,0.00019063,2]
[322039597,1712713838486,-552.23,0.00019086,2]
[322039599,1712713838496,-500.0,0.00019108,2]
[322039601,1712713838505,-200.0,0.00019124,2]
[322039603,1712713838515,-8615.6,0.00019148,2]
[322039604,1712713838524,-161.14,0.00019153,2]
[322039606,1712713838533,-10000.0,0.00019178,2]
[322039608,1712713838543,-240.85,0.00019178,2]
[322039610,1712713838552,-1799.09,0.00019178,2]
[322039612,1712713838561,-187.97,0.00019233,2]
[322039615,1712713838573,-161.14,0.00019244,2]
[322039617,1712713838582,-1143.42,0.00019251,2]
[322039619,1712713838592,-189.81,0.00019268,2]
[322039621,1712713838602,-200.0,0.00019268,2]
[322039623,1712713838611,-1721.56,0.00019284,2]
[322039625,1712713838621,-1856.84,0.00019294,2]
[322039626,1712713838630,-187.97,0.00019296,2]
[322039628,1712713838639,-178.21,0.00019329,2]
[322039630,1712713838649,-160.0,0.00019334,2]
[322039632,1712713838659,-161.14,0.00019334,2]
[322039634,1712713838669,-187.97,0.0001936,2]
[322039636,1712713838678,-2751.0,0.00019363,2]
[322039638,1712713838688,-161.14,0.00019424,2]
[322039640,1712713838697,-1852.42,0.00019435,2]
[322039642,1712713838707,-161.14,0.00019514,2]
[322039644,1712713838716,-161.14,0.00019605,2]
[322039646,1712713838725,-1000.0,0.00019694,2]
[322039648,1712713838735,-161.14,0.00019695,2]
[322039651,1712713838744,-236.329317,0.00019726,2]
[322039652,1712713838754,-161.14,0.00019785,2]
[322039655,1712713838763,-176.01,0.00019858,2]
[322039656,1712713838773,-161.14,0.00019876,2]
[322039658,1712713838782,-161.14,0.00019966,2]
[322039660,1712713838791,-1000.0,0.0002,2]
[322039662,1712713838801,-161.14,0.00020056,2]
[322039664,1712713838810,-872.0,0.00020331,2]
[322039666,1712713838820,-162.05336997,0.00020395,2]
[322039668,1712713838830,-168.15,0.00020425,2]
[322039670,1712713838839,-150.0,0.000205,2]
[322039672,1712713838848,-1000.0,0.000205,2]
[322039674,1712713838859,-155.0,0.000205,2]
[322039676,1712713838870,-748.0,0.0002052,2]
[322039678,1712713838880,-236.329317,0.00020548,2]
[322039680,1712713838889,-3297.0,0.00020548,2]
[322039682,1712713838899,-3570.0,0.00020548,2]
[322039684,1712713838909,-1086.31946517,0.00020685,2]
[322039686,1712713838918,-7699.24,0.00020695,2]
[322039688,1712713838928,-150.0,0.00020779,2]
[322039690,1712713838937,-316.57186665,0.00020788,2]
[322039692,1712713838946,-729.82752725,0.000208,2]
[322039694,1712713838955,-4452.31670313,0.000208,2]
[322039696,1712713838964,-729.82752723,0.00020811,2]
[322039698,1712713838973,-4452.31670312,0.00020811,2]
[322039700,1712713838983,-729.82752723,0.00020822,2]
[322039702,1712713838992,-4452.31670312,0.00020822,2]
[322039704,1712713839001,-200.0,0.00020832,2]
[322039706,1712713839010,-1000.0,0.00020832,2]
[322039708,1712713839019,-200.0,0.00020832,2]
[322039710,1712713839028,-500.0,0.00020832,2]
[322039712,1712713839037,-729.82752723,0.00020833,2]
[322039714,1712713839047,-4452.31670312,0.00020833,2]
[322039716,1712713839057,-906.64,0.0002084,2]
[322039718,1712713839066,-906.64,0.0002084,2]
[322039720,1712713839075,-906.64,0.0002084,2]
[322039722,1712713839084,-332.03,0.0002084,2]
[322039724,1712713839093,-729.82752723,0.00020844,2]
[322039726,1712713839102,-4452.31670312,0.00020844,2]
[322039728,1712713839111,-729.82752723,0.00020856,2]
[322039731,1712713839121,-4452.31670312,0.00020856,2]
[322039733,1712713839130,-729.82752723,0.00020867,2]
[322039734,1712713839139,-4452.31670312,0.00020867,2]
[322039736,1712713839148,-729.82752723,0.00020878,2]
[322039738,1712713839158,-4452.31670312,0.00020878,2]
[322039740,1712713839167,-729.82752723,0.00020889,2]
[322039742,1712713839176,-4452.31670312,0.00020889,2]
[322039745,1712713839185,-433.99,0.0002089,2]
[322039747,1712713839194,-328.1968019,0.00020898,2]
[322039749,1712713839204,-328.1968019,0.00020899,2]
[322039751,1712713839213,-54865.0641,0.000209,2]
[322039753,1712713839221,-413.7219,0.000209,2]
[322039755,1712713839230,-381.6017,0.000209,2]
[322039757,1712713839239,-160.3685,0.000209,2]
[322039759,1712713839248,-186.80267385,0.000209,2]
[322039761,1712713839258,-503.6028067,0.000209,2]
[322039763,1712713839267,-170.76825002,0.000209,2]
[322039765,1712713839276,-729.82752723,0.000209,2]
[322039767,1712713839285,-328.1968019,0.000209,2]
[322039769,1712713839294,-4452.31670312,0.000209,2]
[322039770,1712713839302,-688.31854713,0.000209,2]
[322039772,1712713839312,-229.99686953,0.000209,2]
[322039774,1712713839320,-13674.8617457,0.000209,2]
[322039776,1712713839329,-411.1053514,0.000209,2]
[322039778,1712713839339,-2172.2164076,0.00020979,2]
[322039780,1712713839348,-433.99,0.00020988,2]
[322039782,1712713839357,-433.99,0.0002099,2]
[322039785,1712713839366,-433.99,0.0002099,2]
[322039787,1712713839375,-433.99,0.0002099,2]
[322039789,1712713839384,-433.99,0.0002099,2]
[322039791,1712713839398,-433.99,0.0002099,2]
[322039793,1712713839409,-433.99,0.0002099,2]
[322039796,1712713839418,-433.99,0.0002099,2]
[322039798,1712713839427,-433.99,0.0002099,2]
[322039800,1712713839436,-3528.26702556,0.00020997,2]
[322039802,1712713839446,-96760.78389611,0.00020997,2]
[322039804,1712713839455,-305.49508558,0.00020998,2]
[322039806,1712713839464,-155.1177121,0.00020998,2]
[322039808,1712713839473,-30029.14214955,0.00020998,2]
[322039810,1712713839482,-175.88650886,0.00020998,2]
[322039812,1712713839491,-492.71472897,0.00020998,2]
[322039814,1712713839500,-1764.0804951,0.00020998,2]
[322039816,1712713839509,-1481.13752791,0.00020998,2]
[322039818,1712713839518,-4765.81650802,0.00020998,2]
[322039820,1712713839527,-423.60464364,0.00020998,2]
[322039822,1712713839536,-535.02983527,0.00020998,2]
[322039824,1712713839545,-4427.41843266,0.00020998,2]
[322039826,1712713839554,-926.37884792,0.00020998,2]
[322039828,1712713839563,-1061.24131869,0.00020998,2]
[322039830,1712713839573,-23364.15305033,0.00020998,2]
[322039832,1712713839582,-296.99401246,0.00020998,2]
[322039834,1712713839591,-3774.43490284,0.00020998,2]
[322039836,1712713839600,-787.45071956,0.00020998,2]
[322039838,1712713839609,-1130.93187164,0.00020998,2]
[322039840,1712713839618,-5552.20964786,0.00020998,2]
[322039842,1712713839628,-4160.95790347,0.00020998,2]
[322039844,1712713839638,-205.96366372,0.00020998,2]
[322039846,1712713839647,-486.93,0.00020998,2]
[322039848,1712713839658,-1913.12314818,0.00020998,2]
[322039850,1712713839667,-155.79979905,0.00020998,2]
[322039852,1712713839676,-1976.53642114,0.00020998,2]
[322039854,1712713839686,-552.1900878,0.00020998,2]
[322039856,1712713839696,-283.63847744,0.00020998,2]
[322039858,1712713839705,-646.48525105,0.00020998,2]
[322039860,1712713839714,-155.21437991,0.00020998,2]
[322039862,1712713839724,-157.38684709,0.00020998,2]
[322039864,1712713839733,-200.0,0.00020998,2]
[322039866,1712713839743,-236.94686683,0.00020999,2]
[322039868,1712713839752,-206.93196032,0.00020999,2]
[322039870,1712713839761,-155.2209036,0.00020999,2]
[322039872,1712713839771,-665.0635225,0.00020999,2]
[322039874,1712713839780,-560.17154914,0.00020999,2]
[322039876,1712713839789,-343.67476047,0.00020999,2]
[322039878,1712713839799,-155.47083097,0.00020999,2]
[322039880,1712713839808,-155.38778623,0.00020999,2]
[322039882,1712713839818,-155.4586087,0.00020999,2]
[322039884,1712713839827,-4732.41448216,0.00020999,2]
[322039886,1712713839837,-155.50823195,0.00020999,2]
[322039888,1712713839847,-243.12318968,0.00020999,2]
[322039890,1712713839858,-872.85,0.00020999,2]
[322039892,1712713839867,-297.95694808,0.00020999,2]
[322039894,1712713839877,-420.27790234,0.00020999,2]
[322039896,1712713839887,-510.0,0.00021,2]
[322039898,1712713839896,-274323.70052638,0.00021,2]
[322039900,1712713839905,-233.33086488,0.00021,2]
[322039902,1712713839915,-25083.32670268,0.00021,2]
[322039933,1712713840200,-323.19425699,0.00021,2]
[322040042,1712713842443,-453.5126491,0.00018942,2]
[322040043,1712713842676,-2184.0587158,0.00018942,2]
[322040044,1712713842688,-2437.19661925,0.00018942,2]
[322040045,1712713842700,-839.9587831,0.00018942,2]
[322040304,1712713845557,-2530.99915328,0.00018942,2]
[322040311,1712713845616,-4182.1382916,0.00018942,2]
[322040314,1712713845628,-305.48574082,0.00018942,2]
[322040353,1712713845990,-2700.7407473,0.00018942,2]
[322040358,1712713846028,-807.3025784,0.00018942,2]
[322040360,1712713846041,-6028.6047016,0.00018942,2]
[322040762,1712713850225,300.0,0.00017917,2]
[322040924,1712713851872,1746.48735107,0.00015748,2]
[322041171,1712713854370,14594.62876835,0.00018,2]
[322041345,1712713856061,1037.01238265,0.00018,2]
[322041790,1712713872797,1486.75423115,0.000154,2]
[322041791,1712713876347,178.21,0.00017497,2]
[322041792,1712713887414,509.04733805,0.00018,2]
[322041793,1712713951074,150.65062862,0.00015,2]
[322041794,1712713971007,1199.06667658,0.00018,2]
[322041795,1712714000636,4983.73904175,0.0001305,2]
[322041796,1712714029398,154.98716485,0.00031788,120]
[322041799,1712714039343,1886.65453773,0.00012,2]
[322041800,1712714058628,286.38398892,0.000125,2]
[322041802,1712714068074,1283.76776289,0.00012,2]
[322041803,1712714070768,80799.85347107,0.00015,2]
[322041804,1712714073205,2003.62264501,0.00031788,120]
[322041806,1712714096384,1047.13,0.00017667,2]
[322041807,1712714154617,477.68,0.00024329,15]
[322041809,1712714365401,169.26,0.00015468,2]
[322041817,1712714478285,-155.0,0.00018257,2]
[322041818,1712714478304,-1000.0,0.00018258,2]
[322041819,1712714478324,-155.0,0.00018259,2]
[322041820,1712714478343,-169.55226304,0.0001826,2]
[322041821,1712714478362,-3498.2249,0.00018385,2]
[322041822,1712714478382,-161.87693734,0.00018842,2]
[322041823,1712714478406,-1430.00201975,0.00018942,2]
[322041824,1712714478425,-1250.0,0.00019,3]
[322041825,1712714478445,-991.294672,0.00019167,2]
[322041826,1712714478465,-2751.0,0.00019264,2]
[322041827,1712714478485,-995.55,0.00019335,2]
[322041828,1712714478504,-500.0,0.00019363,2]
[322041829,1712714478525,-2561.82,0.00019403,2]
[322041830,1712714478547,-150.0,0.00019429,2]
[322041831,1712714478570,-500.0,0.00019429,2]
[322041832,1712714478590,-499.99,0.00019429,2]
[322041833,1712714478612,-250.0,0.00019434,2]
[322041834,1712714478633,-150.99,0.00019434,2]
[322041835,1712714478654,-200.0,0.00019465,2]
[322041836,1712714478673,-7499.41,0.00019493,2]
[322041837,1712714478915,-200.0,0.00019685,2]
[322041838,1712714478936,-500.0,0.00019776,2]
[322041839,1712714478956,-9963.91,0.00019848,2]
[322041840,1712714478977,-1047.13,0.00019931,2]
[322041841,1712714478996,-5000.0,0.0002004,2]
[322041842,1712714479016,-5000.0,0.0002004,2]
[322041843,1712714479038,-5000.0,0.0002004,2]
[322041844,1712714479059,-156.09,0.00020083,2]
[322041845,1712714479083,-156.09,0.00020116,2]
[322041846,1712714479104,-156.09,0.00020149,2]
[322041847,1712714479124,-156.09,0.00020182,2]
[322041848,1712714479144,-156.09,0.00020215,2]
[322041849,1712714479165,-904.0,0.00020331,2]
[322041850,1712714479189,-187.0,0.00020421,2]
[322041851,1712714479210,-150.0,0.000205,2]
[322041852,1712714479230,-155.0,0.00020546,2]
[322041853,1712714479250,-721.0,0.00020547,2]
[322041854,1712714479270,-74443.80119292,0.000206,3]
[322041855,1712714479290,-200.0,0.00020832,2]
[322041856,1712714479310,-236.641756,0.00020832,2]
[322041857,1712714479331,-200.0,0.00020832,2]
[322041858,1712714479351,-500.0,0.00020832,2]
[322041859,1712714479372,-906.64,0.0002084,2]
[322041860,1712714479392,-411.55,0.0002084,2]
[322041861,1712714479413,-411.55,0.0002084,2]
[322041862,1712714479432,-906.64,0.0002084,2]
[322041863,1712714479452,-411.55,0.0002084,2]
[322041864,1712714479471,-906.64,0.0002084,2]
[322041865,1712714479491,-582.13,0.0002084,2]
[322041866,1712714479511,-906.64,0.0002084,2]
[322041867,1712714479531,-685.97,0.0002084,2]
[322041868,1712714479550,-469.78,0.00020847,2]
[322041869,1712714479571,-1855.77,0.00020847,2]
[322041870,1712714479591,-161.87693734,0.00020899,2]
[322041871,1712714479611,-408.56,0.000209,2]
[322041872,1712714479630,-173.34388293,0.000209,2]
[322041873,1712714479651,-180.60632819,0.000209,2]
[322041874,1712714479670,-2087.60863279,0.000209,2]
[322041875,1712714479690,-689.95721,0.0002092,2]
[322041876,1712714479710,-277.89969253,0.00020997,2]
[322041877,1712714479731,-3081.70662328,0.00020997,2]
[322041878,1712714479751,-1768.48201078,0.00020997,2]
[322041879,1712714479771,-3378.60942866,0.00020997,2]
[322041880,1712714479792,-215.8646766,0.00020998,2]
[322041881,1712714479811,-179.45365214,0.00020998,2]
[322041882,1712714479831,-305.27766941,0.00020999,2]
[322041883,1712714479851,-551926.56287934,0.00020999,2]
[322041884,1712714479876,-549.28632694,0.00020999,2]
[322041885,1712714479897,-557.21163196,0.00020999,2]
[322041886,1712714479920,-205968.16001414,0.00021,2]
[322041887,1712714479941,-233.33086488,0.00021,2]
[322041888,1712714479963,-1355887.57362911,0.00021,2]
[322041889,1712714479987,-989602.52566793,0.00021,2]
[322041891,1712714503644,952.09779642,0.00014695,2]
[322041893,1712714525641,860.93818222,0.00014695,2]
[322041895,1712714650971,447.82,0.00024329,15]
[322041896,1712714741164,-232.99907698,0.00018244,2]
[322041913,1712714845128,-504.36192946,0.00018236,2]
[322041914,1712714845149,-522.93077474,0.00018237,2]
[322041915,1712714845170,-538.18635898,0.00018238,2]
[322041916,1712714845193,-1000.0,0.00018239,2]
[322041917,1712714845212,-155.0,0.0001824,2]
[322041918,1712714845232,-1291.37360342,0.0001824,2]
[322041919,1712714845251,-150.0,0.00018244,2]
[322041920,1712714845271,-2350.74431941,0.00018249,2]
[322041921,1712714845292,-956.25,0.0001825,2]
[322041922,1712714845311,-260.86732737,0.000183,2]
[322041923,1712714845332,-155.44351897,0.00018898,2]
[322041924,1712714845350,-260.38108017,0.00018898,2]
[322041925,1712714845370,-156.62444705,0.00018898,2]
[322041926,1712714845389,-233.43375746,0.00019,2]
[322041927,1712714845410,-500.0,0.00019589,2]
[322041928,1712714845429,-500.0,0.00019702,2]
[322041929,1712714845448,-250.0,0.00019711,2]
[322041930,1712714845466,-150.0,0.00019902,2]
[322041931,1712714845486,-200.0,0.00019984,2]
[322041932,1712714845506,-200.0,0.00020068,2]
[322041933,1712714845526,-23900.0,0.00020333,2]
[322041934,1712714845545,-155.0,0.000205,2]
[322041935,1712714845565,-150.0,0.000205,2]
[322041936,1712714845585,-956.25,0.00020514,2]
[322041937,1712714845606,-276.8,0.0002056,2]
[322041938,1712714845627,-155.67,0.00020578,2]
[322041939,1712714845651,-301.88,0.00020778,2]
[322041940,1712714845673,-230.56608449,0.0002079,2]
[322041941,1712714845692,-1263.4992,0.000209,2]
[322041942,1712714845717,-108.18518348,0.000209,2]
[322041966,1712715031608,-591.826501,0.00019744,2]
[322041978,1712715031724,-1429.840374,0.00019744,2]
[322041980,1712715031734,-1291.37360342,0.00019843,2]
[322041982,1712715031743,-1000.0,0.00019844,2]
[322041984,1712715031754,-538.18635898,0.00019844,2]
[322041986,1712715031763,-2930.12553345,0.00020444,2]
[322041988,1712715031775,-1007.15591784,0.00020444,2]
[322041989,1712715031792,-1143.30854871,0.00020444,2]
[322041990,1712715031801,-155.0,0.00020619,2]
[322041991,1712715031811,-4390.32,0.0002062,2]
[322041992,1712715031820,-1373.04,0.0002062,2]
[322041993,1712715031829,-497.77,0.0002062,2]
[322041994,1712715031838,-183.3922,0.0002079,2]